fUSD/lending_fUSD_20260304
["ID","MTS","AMOUNT","RATE_DAILY","PERIOD"]
[407637932,1772589033103,-151.0,0.00011928,2]
[407637933,1772589033112,-151.0,0.00011928,2]
[407637934,1772589033122,-151.0,0.00011928,2]
[407637935,1772589033132,-151.0,0.00011928,2]
[407637936,1772589033142,-151.0,0.00011928,2]
[407637937,1772589033151,-151.0,0.00011928,2]
[407637938,1772589033161,-151.0,0.00011928,2]
[407637939,1772589033170,-151.0,0.00011928,2]
[407637940,1772589033180,-151.0,0.00011928,2]
[407637941,1772589033190,-151.0,0.00011928,2]
[407637942,1772589033200,-151.0,0.00011928,2]
[407637943,1772589033210,-151.0,0.00011928,2]
[407637944,1772589033220,-10435.89,0.00011935,2]
[407637945,1772589033231,-166.66,0.00011955,2]
[407637946,1772589033240,-582.0,0.00011979,2]
[407637947,1772589033251,-151.0,0.00011983,2]
[407637948,1772589033261,-151.0,0.00012038,2]
[407637949,1772589033272,-151.0,0.00012093,2]
[407637950,1772589033282,-151.0,0.00012148,2]
[407637951,1772589033291,-679.86134487,0.000122,2]
[407637952,1772589033301,-500.0,0.000122,2]
[407637953,1772589033310,-570.66662919,0.000122,2]
[407637954,1772589033320,-503.11179699,0.000122,2]
[407637955,1772589033330,-500.0,0.000122,2]
[407637956,1772589033339,-514.43382249,0.000122,2]
[407637957,1772589033348,-502.0422901,0.000122,2]
[407637958,1772589033358,-505.79542106,0.000122,2]
[407637959,1772589033368,-502.61808352,0.000122,2]
[407637960,1772589033378,-502.32777902,0.000122,2]
[407637961,1772589033387,-308.97727172,0.000122,2]
[407637962,1772589033398,-151.0,0.00012203,2]
[407637963,1772589033407,-151.0,0.00012258,2]
[407637964,1772589033417,-151.0,0.00012313,2]
[407637965,1772589033426,-151.0,0.00012368,2]
[407637966,1772589033436,-151.0,0.00012423,2]
[407637967,1772589033445,-500.0,0.0001243,2]
[407637968,1772589033455,-200.0,0.00012476,2]
[407637969,1772589033468,-244.07747426,0.00012478,2]
[407637970,1772589033477,-252.31,0.00012564,2]
[407637971,1772589033487,-650.44554541,0.000126,2]
[407637972,1772589033499,-2648.18154568,0.000126,2]
[407637973,1772589033510,-896.0,0.000126,5]
[407637974,1772589033520,-151.0,0.0001269,2]
[407637975,1772589033530,-153.87695798,0.0001269,2]
[407637976,1772589033539,-1354.24897044,0.00012693,2]
[407637977,1772589033550,-954.8026081,0.00012693,2]
[407637978,1772589033570,-15751.54371747,0.00012693,2]
[407637979,1772589033584,-72875.78227443,0.00012693,2]
[407637980,1772589033594,-152.6877233,0.000127,2]
[407637981,1772589033604,-156.60776108,0.000127,2]
[407637982,1772589033614,-155.26922965,0.000127,2]
[407637983,1772589033623,-1000.0,0.00012709,2]
[407637984,1772589033633,-1449.1825,0.00012712,2]
[407637985,1772589033643,-887.02811095,0.00012723,2]
[407637986,1772589033655,-465.18605663,0.00012723,2]
[407637987,1772589033666,-477.15351393,0.00012723,2]
[407637988,1772589033676,-592.11660909,0.00012723,2]
[407637989,1772589033688,-407.88339091,0.00012723,2]
[407637990,1772589033699,-1014.75560483,0.00012723,2]
[407637991,1772589033712,-1485.24439517,0.00012723,2]
[407637992,1772589033722,-159.792,0.00012725,2]
[407637993,1772589033731,-313.213037,0.00012725,2]
[407637994,1772589033741,-313.213037,0.00012725,2]
[407637995,1772589033751,-313.213037,0.00012725,2]
[407637996,1772589033760,-313.213037,0.00012725,2]
[407637997,1772589033770,-151.0,0.00012726,2]
[407637998,1772589033780,-156.587,0.00012726,2]
[407637999,1772589033790,-151.0,0.00012726,2]
[407638000,1772589033800,-162.380719,0.00012726,2]
[407638001,1772589033810,-160.61230613,0.00012726,2]
[407638002,1772589033819,-721.12765535,0.00012726,2]
[407638003,1772589033829,-151.0,0.00012726,2]
[407638004,1772589033839,-2500.0,0.00012726,2]
[407638005,1772589033849,-500.0,0.00012726,2]
[407638006,1772589033859,-151.0,0.00012726,2]
[407638007,1772589033869,-2500.0,0.00012726,2]
[407638008,1772589033878,-500.0,0.00012726,2]
[407638009,1772589033889,-151.0,0.00012726,2]
[407638010,1772589033900,-2500.0,0.00012726,2]
[407638011,1772589033909,-500.0,0.00012726,2]
[407638012,1772589033919,-151.0,0.00012726,2]
[407638013,1772589033930,-2500.0,0.00012726,2]
[407638014,1772589033940,-500.0,0.00012726,2]
[407638015,1772589033951,-1000.0,0.00012726,2]
[407638016,1772589033963,-151.0,0.00012726,2]
[407638017,1772589033975,-724.21841735,0.00012726,2]
[407638018,1772589033987,-1703.04317917,0.00012726,2]
[407638019,1772589033999,-72.73840348,0.00012726,2]
[407638020,1772589034009,-500.0,0.00012726,2]
[407638021,1772589034020,-1000.0,0.00012726,2]
[407638022,1772589034030,-151.0,0.00012726,2]
[407638023,1772589034039,-1196.26159652,0.00012726,2]
[407638024,1772589034051,-716.51117773,0.00012726,2]
[407638025,1772589034070,-587.22722575,0.00012726,2]
[407638026,1772589034079,-500.0,0.00012726,2]
[407638027,1772589034089,-1000.0,0.00012726,2]
[407638028,1772589034100,-151.0,0.00012726,2]
[407638029,1772589034113,-172.40082947,0.00012726,2]
[407638030,1772589034126,-2327.59917053,0.00012726,2]
[407638031,1772589034136,-500.0,0.00012726,2]
[407638032,1772589034147,-1000.0,0.00012726,2]
[407638033,1772589034157,-151.0,0.00012726,2]
[407638034,1772589034167,-2500.0,0.00012726,2]
[407638035,1772589034177,-300.0,0.00012726,2]
[407638036,1772589034187,-500.0,0.00012726,2]
[407638037,1772589034196,-834.86611384,0.00012726,2]
[407638038,1772589034210,-165.13388616,0.00012726,2]
[407638039,1772589034220,-151.0,0.00012726,2]
[407638040,1772589034230,-2202.65118288,0.00012726,2]
[407638041,1772589034242,-297.34881712,0.00012726,2]
[407638042,1772589034253,-304.28140189,0.00012726,2]
[407638043,1772589034262,-309.91070827,0.00012726,2]
[407638046,1772589038246,-1000.0,0.00012723,2]
[407638047,1772589038256,-190.08929173,0.00012726,2]
[407638048,1772589038266,-250.0,0.00012726,2]
[407638049,1772589038275,-1000.0,0.00012726,2]
[407638050,1772589038284,-151.0,0.00012726,2]
[407638051,1772589038294,-2500.0,0.00012726,2]
[407638052,1772589038303,-500.0,0.00012726,2]
[407638053,1772589038313,-1000.0,0.00012726,2]
[407638054,1772589038323,-250.0,0.00012726,2]
[407638055,1772589038334,-151.0,0.00012726,2]
[407638056,1772589038343,-1356.85089765,0.00012726,2]
[407638057,1772589038354,-1143.14910235,0.00012726,2]
[407638058,1772589038363,-480.98043877,0.00012726,2]
[407638059,1772589038374,-19.01956123,0.00012726,2]
[407638060,1772589038384,-250.0,0.00012726,2]
[407638061,1772589038393,-1000.0,0.00012726,2]
[407638062,1772589038402,-250.0,0.00012726,2]
[407638063,1772589038411,-250.0,0.00012726,2]
[407638064,1772589038420,-1000.0,0.00012726,2]
[407638065,1772589038429,-250.0,0.00012726,2]
[407638066,1772589038439,-1000.0,0.00012726,2]
[407638068,1772589038448,-250.0,0.00012726,2]
[407638070,1772589038457,-250.0,0.00012726,2]
[407638072,1772589038471,-578.20924308,0.00012726,2]
[407638074,1772589038480,-1000.0,0.00012726,2]
[407638076,1772589038489,-250.0,0.00012726,2]
[407638078,1772589038498,-250.0,0.00012726,2]
[407638080,1772589038509,-1000.0,0.00012726,2]
[407638082,1772589038519,-250.0,0.00012726,2]
[407638084,1772589038527,-250.0,0.00012726,2]
[407638086,1772589038538,-1000.0,0.00012726,2]
[407638088,1772589038552,-250.0,0.00012726,2]
[407638090,1772589038561,-250.0,0.00012726,2]
[407638092,1772589038570,-1000.0,0.00012726,2]
[407638094,1772589038579,-250.0,0.00012726,2]
[407638096,1772589038588,-250.0,0.00012726,2]
[407638098,1772589038598,-1000.0,0.00012726,2]
[407638100,1772589038607,-250.0,0.00012726,2]
[407638102,1772589038617,-72.55462567,0.00012726,2]
[407638105,1772589038629,-177.44537433,0.00012726,2]
[407638107,1772589038638,-1000.0,0.00012726,2]
[407638109,1772589038648,-117.65067685,0.00012726,2]
[407638111,1772589038661,-132.34932315,0.00012726,2]
[407638113,1772589038670,-250.0,0.00012726,2]
[407638115,1772589038680,-1000.0,0.00012726,2]
[407638117,1772589038690,-250.0,0.00012726,2]
[407638119,1772589038699,-1000.0,0.00012726,2]
[407638121,1772589038708,-250.0,0.00012726,2]
[407638123,1772589038717,-1000.0,0.00012726,2]
[407638125,1772589038726,-174.61919141,0.00012726,2]
[407638127,1772589038735,-500.0,0.00012726,2]
[407638129,1772589038745,-1000.0,0.00012726,2]
[407638131,1772589038754,-500.0,0.00012726,2]
[407638133,1772589038764,-500.0,0.00012726,2]
[407638135,1772589038773,-250.0,0.00012726,2]
[407638137,1772589038783,-500.0,0.00012726,2]
[407638138,1772589038793,-250.0,0.00012726,2]
[407638140,1772589038802,-500.0,0.00012726,2]
[407638142,1772589038811,-64.42440738,0.00012726,2]
[407638144,1772589038823,-185.57559262,0.00012726,2]
[407638145,1772589038832,-500.0,0.00012726,2]
[407638147,1772589038841,-102.88305932,0.00012726,2]
[407638149,1772589038852,-397.11694068,0.00012726,2]
[407638150,1772589038862,-250.0,0.00012726,2]
[407638152,1772589038871,-352.88305932,0.00012726,2]
[407638154,1772589038882,-147.11694068,0.00012726,2]
[407638156,1772589038891,-250.0,0.00012726,2]
[407638157,1772589038901,-500.0,0.00012726,2]
[407638159,1772589038910,-250.0,0.00012726,2]
[407638161,1772589038918,-162.04152884,0.00012726,2]
[407638162,1772589038927,-250.0,0.00012726,2]
[407638164,1772589038940,-250.0,0.00012726,2]
[407638166,1772589038949,-250.0,0.00012726,2]
[407638168,1772589038958,-346.85704209,0.00012726,2]
[407638169,1772589038967,-68.52153635,0.00012726,2]
[407638282,1772589040387,-1054.74092422,0.00012726,2]
[407638284,1772589040399,-1876.73753943,0.00012726,2]
[407638286,1772589040409,-3096.59975335,0.00012726,2]
[407638287,1772589040418,-151.0,0.00012726,2]
[407638289,1772589040427,-250.0,0.00012726,2]
[407638291,1772589040437,-250.0,0.00012726,2]
[407638293,1772589040447,-255.86978713,0.00012726,2]
[407638295,1772589040456,-693.3919763,0.00012726,2]
[407638297,1772589040469,-200.0,0.00012726,2]
[407638298,1772589040480,-202.06375628,0.00012726,2]
[407638300,1772589040489,-235.75327194,0.00012726,2]
[407638302,1772589040499,-269.917619,0.00012726,2]
[407638304,1772589040510,-743.50770149,0.00012726,2]
[407638306,1772589040519,-8891.13120227,0.00012732,2]
[407638307,1772589040529,-313.213037,0.00012732,2]
[407638309,1772589040542,-313.213037,0.00012732,2]
[407638311,1772589040551,-313.213037,0.00012732,2]
[407638313,1772589040560,-313.213037,0.00012732,2]
[407638315,1772589040569,-501.15702413,0.00012773,2]
[407638316,1772589040578,-504.18621892,0.00012773,2]
[407638318,1772589040588,-151.0,0.00012781,2]
[407638320,1772589040598,-719.04747942,0.00012781,2]
[407638322,1772589040607,-382.570006,0.00012793,2]
[407638324,1772589040616,-382.570006,0.00012793,2]
[407638325,1772589040625,-382.570006,0.00012793,2]
[407638327,1772589040634,-382.570006,0.00012793,2]
[407638329,1772589040643,-151.0,0.00012793,2]
[407638331,1772589040652,-153.643834,0.00012793,2]
[407638333,1772589040662,-17559.89090339,0.00012796,2]
[407638334,1772589040671,-382.570006,0.00012796,2]
[407638337,1772589040685,-382.570006,0.00012796,2]
[407638338,1772589040695,-382.570006,0.00012796,2]
[407638340,1772589040705,-382.570006,0.00012796,2]
[407638342,1772589040715,-200.0,0.00012822,3]
[407638344,1772589040725,-39606.04474054,0.00012823,2]
[407638346,1772589040736,-1340.67387277,0.00012823,2]
[407638348,1772589040751,-1058.577,0.00012823,2]
[407638431,1772589045812,-500.0,0.00012775,2]
[407638432,1772589045822,-6715.60161172,0.00012823,2]
[407638437,1772589046235,-3557.31461647,0.00012823,2]
[407638438,1772589046245,-9354.168839,0.00012823,2]
[407638439,1772589046255,-1663.0748802,0.00012823,2]
[407638440,1772589046267,-5988.34166432,0.00012823,2]
[407638441,1772589046280,-843.96754938,0.00012823,2]
[407638442,1772589046292,-170.808032,0.00012823,2]
[407638443,1772589046301,-3919.5200826,0.00012823,2]
[407638444,1772589046310,-382.570006,0.00012823,2]
[407638445,1772589046320,-382.570006,0.00012823,2]
[407638446,1772589046329,-382.570006,0.00012823,2]
[407638447,1772589046339,-382.570006,0.00012823,2]
[407638449,1772589046349,-313.213037,0.00012823,2]
[407638451,1772589046358,-38.71132502,0.00012823,2]
[407638452,1772589046369,-274.50171198,0.00012823,2]
[407638453,1772589046378,-313.213037,0.00012823,2]
[407638454,1772589046388,-313.213037,0.00012823,2]
[407638456,1772589046397,-1457.57,0.00012825,2]
[407638458,1772589046407,-1000.0,0.00012832,2]
[407638460,1772589046417,-1001.48188505,0.00012832,2]
[407638462,1772589046427,-200.0,0.00012833,2]
[407638464,1772589046437,-382.570006,0.00012833,2]
[407638466,1772589046446,-382.570006,0.00012833,2]
[407638468,1772589046455,-382.570006,0.00012833,2]
[407638470,1772589046470,-382.570006,0.00012833,2]
[407638472,1772589046480,-152.0,0.00012833,3]
[407638474,1772589046489,-151.0,0.00012836,2]
[407638476,1772589046499,-745.65223616,0.00012836,2]
[407638478,1772589046510,-151.0,0.00012891,2]
[407638480,1772589046519,-773.2413689,0.00012891,2]
[407638482,1772589046529,-151.0,0.00012946,2]
[407638484,1772589046539,-801.85129955,0.00012946,2]
[407638486,1772589046551,-84.53069672,0.0001298,2]
[407638489,1772589046562,-70.46930328,0.0001298,2]
[407638491,1772589046574,-151.0,0.00013001,2]
[407638493,1772589046583,-751.53993168,0.00013001,2]
[407638578,1772590039330,177.0,0.000172,120]
[407638595,1772590232284,-172.27,9.153e-05,2]
[407638597,1772590232294,-20766.34510968,9.95e-05,2]
[407638600,1772590232305,-5928.72324043,9.95e-05,2]
[407638601,1772590232318,-530.77151899,0.0001,2]
[407638602,1772590232329,-999.576152,0.0001,2]
[407638603,1772590232339,-347.61769286,0.0001,2]
[407638604,1772590232348,-500.0,0.0001,2]
[407638605,1772590232358,-500.0,0.0001,2]
[407638606,1772590232368,-500.0,0.0001,2]
[407638607,1772590232377,-500.0,0.0001,2]
[407638608,1772590232388,-500.0,0.0001,2]
[407638609,1772590232397,-500.0,0.0001,2]
[407638610,1772590232407,-500.0,0.0001,2]
[407638611,1772590232417,-500.0,0.0001,2]
[407638612,1772590232426,-500.0,0.0001,2]
[407638613,1772590232436,-500.0,0.0001,2]
[407638614,1772590232445,-160.55109637,0.0001,2]
[407638615,1772590232455,-151.0,0.0001,2]
[407638616,1772590232466,-151.0,0.0001,2]
[407638617,1772590232475,-200.0,0.0001,2]
[407638618,1772590232485,-151.0,0.0001,2]
[407638619,1772590232494,-151.0,0.0001,2]
[407638620,1772590232504,-151.0,0.0001,2]
[407638621,1772590232514,-151.0,0.0001,2]
[407638622,1772590232524,-151.0,0.0001,2]
[407638623,1772590232535,-151.0,0.0001,2]
[407638624,1772590232545,-151.0,0.0001,2]
[407638625,1772590232555,-151.0,0.0001,2]
[407638626,1772590232566,-151.0,0.0001,2]
[407638627,1772590232579,-151.0,0.0001,2]
[407638628,1772590232589,-151.0,0.0001,2]
[407638629,1772590232599,-258.20521433,0.0001,2]
[407638630,1772590232608,-200.0,0.00010548,2]
[407638631,1772590232617,-647.40223119,0.00010959,2]
[407638632,1772590232627,-151.0,0.00011093,2]
[407638633,1772590232636,-200.0,0.00011096,2]
[407638634,1772590232646,-555.0,0.00011096,2]
[407638635,1772590232655,-250.0,0.00011283,2]
[407638636,1772590232665,-197.90181769,0.00011422,2]
[407638637,1772590232674,-1592.19,0.00011456,2]
[407638638,1772590232684,-200.0,0.00011523,2]
[407638639,1772590232694,-285.2,0.0001157,2]
[407638640,1772590232703,-1592.69,0.00011617,2]
[407638641,1772590232712,-200.0,0.00011644,2]
[407638642,1772590232722,-555.0,0.00011661,2]
[407638643,1772590232731,-502.95499374,0.00011735,2]
[407638644,1772590232741,-1662.71,0.00011738,2]
[407638645,1772590232751,-373.21196305,0.00011743,2]
[407638646,1772590232761,-168.0,0.00011743,2]
[407638647,1772590232770,-1500.0,0.00011748,2]
[407638648,1772590232779,-1600.0,0.00011958,2]
[407638649,1772590232789,-200.0,0.00012192,2]
[407638650,1772590232799,-544.75084473,0.000122,2]
[407638651,1772590232808,-500.0,0.000122,2]
[407638652,1772590232817,-500.0,0.000122,2]
[407638653,1772590232828,-166.66,0.00012304,2]
[407638654,1772590232838,-500.0,0.000124,2]
[407638655,1772590232850,-150.0,0.000124,2]
[407638656,1772590232860,-500.0,0.000124,2]
[407638657,1772590232869,-167.28900627,0.00012454,2]
[407638658,1772590232878,-500.0,0.00012454,2]
[407638659,1772590232890,-150.0,0.00012454,2]
[407638660,1772590232899,-208.47223315,0.00012454,2]
[407638661,1772590232909,-500.0,0.00012454,2]
[407638662,1772590232919,-150.0,0.00012454,2]
[407638663,1772590232928,-500.0,0.00012455,2]
[407638664,1772590232938,-150.0,0.00012455,2]
[407638665,1772590232947,-500.0,0.00012455,2]
[407638666,1772590232957,-2934.42,0.00012467,2]
[407638667,1772590232967,-150.0,0.00012509,2]
[407638668,1772590232976,-500.0,0.00012509,2]
[407638669,1772590232985,-500.0,0.00012509,2]
[407638670,1772590232993,-648.15233432,0.0001251,2]
[407638671,1772590233002,-150.0,0.0001251,2]
[407638672,1772590233010,-500.0,0.0001251,2]
[407638673,1772590233019,-150.0,0.00012564,2]
[407638674,1772590233028,-353.26020711,0.00012564,2]
[407638675,1772590233037,-617.48024749,0.00012564,2]
[407638676,1772590233046,-248.5745741,0.00012564,2]
[407638677,1772590233055,-500.0,0.00012564,2]
[407638678,1772590233064,-17230.98,0.00012574,2]
[407638679,1772590233074,-1200.0,0.000126,4]
[407638680,1772590233083,-257.29323251,0.00012618,2]
[407638681,1772590233095,-500.0,0.00012619,2]
[407638682,1772590233105,-150.0,0.00012619,2]
[407638683,1772590233114,-150.0,0.00012619,2]
[407638684,1772590233123,-150.0,0.00012619,2]
[407638685,1772590233132,-500.0,0.00012619,2]
[407638686,1772590233141,-150.0,0.00012619,2]
[407638687,1772590233150,-500.0,0.00012619,2]
[407638688,1772590233159,-150.0,0.00012619,2]
[407638689,1772590233168,-150.0,0.00012619,2]
[407638690,1772590233177,-11.55838894,0.00012619,2]
[407638691,1772590233190,-138.44161106,0.00012619,2]
[407638692,1772590233199,-500.0,0.00012619,2]
[407638693,1772590233208,-1000.0,0.00012625,2]
[407638694,1772590233217,-190.47360615,0.00012629,2]
[407638695,1772590233225,-1000.0,0.00012632,2]
[407638696,1772590233234,-151.0,0.00012632,2]
[407638697,1772590233243,-1000.0,0.00012632,2]
[407638698,1772590233252,-1000.0,0.00012632,2]
[407638699,1772590233260,-1000.0,0.00012632,2]
[407638700,1772590233269,-1000.0,0.00012632,2]
[407638701,1772590233278,-1000.0,0.00012632,2]
[407638702,1772590233287,-1000.0,0.00012632,2]
[407638703,1772590233296,-1000.0,0.00012632,2]
[407638704,1772590233305,-250.0,0.00012632,2]
[407638705,1772590233314,-1000.0,0.00012632,2]
[407638706,1772590233323,-2500.0,0.00012632,2]
[407638707,1772590233332,-250.0,0.00012632,2]
[407638708,1772590233341,-1000.0,0.00012632,2]
[407638709,1772590233351,-721.12765535,0.00012632,2]
[407638710,1772590233359,-1917.84374692,0.00012632,2]
[407638711,1772590233370,-582.15625308,0.00012632,2]
[407638712,1772590233379,-250.0,0.00012632,2]
[407638713,1772590233388,-121.78566007,0.00012632,2]
[407638714,1772590233402,-58.57711395,0.00012632,2]
[407638715,1772590233411,-345.07633146,0.00012632,2]
[407638716,1772590233426,-572.84682148,0.00012632,2]
[407638717,1772590233436,-1582.07684706,0.00012632,2]
[407638718,1772590233445,-1002.06108054,0.00012632,2]
[407638721,1772590238289,-64.81766991,0.00012632,2]
[407638723,1772590238300,-250.0,0.00012632,2]
[407638724,1772590238311,-120.29627198,0.00012632,2]
[407638725,1772590238322,-129.70372802,0.00012632,2]
[407638726,1772590238331,-372.58257451,0.00012632,2]
[407638727,1772590238345,-500.0,0.00012632,2]
[407638728,1772590238355,-500.0,0.00012632,2]
[407638729,1772590238364,-500.0,0.00012632,2]
[407638730,1772590238373,-500.0,0.00012632,2]
[407638731,1772590238383,-500.0,0.00012632,2]
[407638732,1772590238393,-500.0,0.00012632,2]
[407638733,1772590238402,-500.0,0.00012632,2]
[407638734,1772590238412,-151.0,0.00012632,2]
[407638735,1772590238422,-578.20924308,0.00012632,2]
[407638736,1772590238432,-500.0,0.00012632,2]
[407638737,1772590238442,-151.0,0.00012632,2]
[407638738,1772590238451,-500.0,0.00012632,2]
[407638739,1772590238461,-174.61919141,0.00012632,2]
[407638740,1772590238470,-151.0,0.00012632,2]
[407638741,1772590238479,-500.0,0.00012632,2]
[407638742,1772590238489,-151.0,0.00012632,2]
[407638743,1772590238498,-500.0,0.00012632,2]
[407638744,1772590238508,-151.0,0.00012632,2]
[407638745,1772590238517,-151.0,0.00012632,2]
[407638746,1772590238527,-151.0,0.00012632,2]
[407638747,1772590238536,-151.0,0.00012632,2]
[407638748,1772590238545,-151.0,0.00012632,2]
[407638749,1772590238555,-743.50770149,0.00012632,2]
[407638751,1772590238564,-151.0,0.00012632,2]
[407638753,1772590238575,-151.0,0.00012632,2]
[407638755,1772590238585,-693.3919763,0.00012632,2]
[407638757,1772590238595,-250.0,0.00012632,2]
[407638759,1772590238605,-250.0,0.00012632,2]
[407638761,1772590238615,-250.0,0.00012632,2]
[407638763,1772590238624,-250.0,0.00012632,2]
[407638765,1772590238633,-151.0,0.00012632,2]
[407638767,1772590238642,-250.0,0.00012632,2]
[407638769,1772590238652,-250.0,0.00012632,2]
[407638771,1772590238662,-250.0,0.00012632,2]
[407638773,1772590238672,-250.0,0.00012632,2]
[407638775,1772590238681,-250.0,0.00012632,2]
[407638777,1772590238691,-250.0,0.00012632,2]
[407638778,1772590238700,-309.02177377,0.00012632,2]
[407638779,1772590238710,-235.75327194,0.00012632,2]
[407638780,1772590238720,-269.917619,0.00012632,2]
[407638781,1772590238729,-500.0,0.00012674,2]
[407638783,1772590238738,-150.0,0.00012674,2]
[407638785,1772590238747,-150.0,0.00012674,2]
[407638787,1772590238757,-150.0,0.00012674,2]
[407638788,1772590238766,-500.0,0.00012674,2]
[407638789,1772590238776,-500.0,0.00012674,2]
[407638790,1772590238785,-196.97525517,0.00012674,2]
[407638791,1772590238795,-150.0,0.00012674,2]
[407638793,1772590238804,-150.0,0.00012674,2]
[407638795,1772590238814,-281.7244005,0.00012674,2]
[407638797,1772590238824,-500.0,0.00012674,2]
[407638799,1772590238834,-719.04747942,0.00012687,2]
[407638801,1772590238848,-151.0,0.00012687,2]
[407638803,1772590238858,-2400.0,0.000127,4]
[407638805,1772590239052,-61167.4924,0.000127,2]
[407638806,1772590239062,-151.0,0.000127,2]
[407638807,1772590239072,-166.66,0.0001271,2]
[407638808,1772590239083,-500.0,0.00012729,2]
[407638809,1772590239092,-188.75555333,0.00012729,2]
[407638810,1772590239102,-253.12775827,0.00012729,2]
[407638811,1772590239112,-201.41861585,0.00012729,2]
[407638812,1772590239121,-500.0,0.00012729,2]
[407638813,1772590239130,-500.0,0.00012729,2]
[407638814,1772590239140,-202.61176714,0.00012729,2]
[407638815,1772590239150,-150.0,0.00012729,2]
[407638816,1772590239159,-501.49196674,0.00012729,2]
[407638817,1772590239168,-856.716,0.00012732,2]
[407638818,1772590239178,-175.789,0.00012732,2]
[407638819,1772590239187,-200.0,0.0001274,2]
[407638820,1772590239196,-745.65223616,0.00012742,2]
[407638821,1772590239206,-151.0,0.00012742,2]
[407638822,1772590239219,-272.94764699,0.00012773,2]
[407638823,1772590239228,-2934.42,0.00012779,2]
[407638824,1772590239237,-500.0,0.00012783,2]
[407638825,1772590239247,-515.36924383,0.00012783,2]
[407638826,1772590239257,-501.74148899,0.00012783,2]
[407638827,1772590239268,-170.29192802,0.00012783,2]
[407638828,1772590239278,-151.0,0.00012793,2]
[407638829,1772590239287,-151.0,0.00012793,2]
[407638830,1772590239296,-151.0,0.00012793,2]
[407638831,1772590239305,-240.7043031,0.00012793,2]
[407638832,1772590239314,-773.2413689,0.00012797,2]
[407638833,1772590239323,-151.0,0.00012797,2]
[407638834,1772590239334,-3700.0,0.000128,4]
[407638835,1772590239343,-2500.0,0.00012801,2]
[407638836,1772590239352,-1694.14626477,0.00012807,2]
[407638837,1772590239362,-3027.37336833,0.00012807,2]
[407638838,1772590239372,-168.0247571,0.00012822,2]
[407638839,1772590239381,-12870.16176713,0.00012822,2]
[407638840,1772590239394,-344.00341627,0.00012822,2]
[407638841,1772590239403,-1391.13746153,0.00012822,2]
[407638842,1772590239414,-473.51743337,0.00012822,2]
[407638843,1772590239423,-350.0,0.00012843,2]
[407638844,1772590239432,-544.42533014,0.00012852,2]
[407638845,1772590239445,-257.42596941,0.00012852,2]
[407638846,1772590239455,-151.0,0.00012852,2]
[407638847,1772590239466,-151.0,0.00012893,2]
[407638848,1772590239476,-45.82268676,0.00012893,2]
[407638849,1772590239492,-105.17731324,0.00012893,2]
[407638850,1772590239502,-1521.00619489,0.000129,4]
[407638851,1772590239513,-3378.99380511,0.000129,4]
[407638852,1772590239523,-151.0,0.000129,2]
[407638853,1772590239532,-500.0,0.000129,2]
[407638854,1772590239541,-500.0,0.000129,2]
[407638855,1772590239551,-500.0,0.000129,2]
[407638856,1772590239560,-500.0,0.000129,2]
[407638857,1772590239570,-500.0,0.000129,2]
[407638858,1772590239581,-500.0,0.000129,2]
[407638859,1772590239590,-500.0,0.000129,2]
[407638860,1772590239600,-500.0,0.000129,2]
[407638861,1772590239609,-292.93928492,0.000129,2]
[407638862,1772590239618,-500.0,0.000129,2]